[Event "3rd Memorial Warakomska 2019"]
[Site "Suwalki"]
[Date "2019.08.10"]
[Round "7.3"]
[White "Nasuta, Grzegorz"]
[Black "Malakhatko, Vadim"]
[Result "0-1"]
[ECO "C42"]
[WhiteElo "2529"]
[BlackElo "2462"]
[Annotator "ChessBase"]
[PlyCount "65"]
[EventDate "2019.08.05"]
[EventType "swiss"]
[EventCountry "POL"]
[SourceTitle "playchess.com"]
[Source "ChessBase"]
[SourceQuality "1"]
[TimeControl "40/5400+30:1800+30"]

1. e4 {[%emt 0:00:00]} e5 {[%emt 0:00:40]} 2. Nf3 {[%emt 0:00:15]} Nf6 {[%emt 0:00:07]} 3. Nxe5 {[%emt 0:02:19]} d6 {[%emt 0:00:07]} 4. Nf3 {[%emt 0:00:05]} Nxe4 {[%emt 0:00:06]} 5. Nc3 {[%emt 0:00:06]} Nf6 {[%emt 0:00:10]} 6. d4 {[%emt 0:01:44]} Be7 {[%emt 0:03:24]} 7. Bd3 {[%emt 0:07:17]} O-O {[%emt 0:04:06]} 8. Be3 {[%emt 0:06:38]} Nbd7 {[%emt 0:04:14]} 9. Qe2 {[%emt 0:07:01]} a6 {[%emt 0:07:41]} 10. O-O-O {[%emt 0:23:26]} b5 {[%emt 0:00:08]} 11. Ng5 {[%emt 0:01:33]} Bb7 {[%emt 0:05:51]} 12. h4 {[%emt 0:00:06]} Re8 {[%emt 0:20:27]} 13. Nce4 {[%emt 0:08:51]} Bf8 {[%emt 0:11:33]} 14. Qf3 {[%emt 0:07:15]} Bd5 {[%emt 0:23:11]} 15. Nxf6+ {[%emt 0:17:22]} Nxf6 {[%emt 0:00:07]} 16. Bxh7+ {[%emt 0:01:08]} Kh8 {[%emt 0:03:51]} 17. Qe2 {[%emt 0:00:04]} Qd7 {[%emt 0:06:46]} 18. Qd3 {[%emt 0:04:19]} Bxg2 {[%emt 0:02:26]} 19. Bf5 {[%emt 0:00:33]} Qe7 {[%emt 0:00:03]} 20. Rhe1 {[%emt 0:04:36]} Bd5 {[%emt 0:00:07]} 21. Bd2 {[%emt 0:00:50]} Qd8 {[%emt 0:00:06]} 22. b3 {[%emt 0:00:20]} g6 {[%emt 0:02:25]} 23. Bh3 {[%emt 0:01:56]} Kg8 {[%emt 0:00:36]} 24. f4 {[%emt 0:00:41]} Rxe1 {[%emt 0:01:38]} 25. Rxe1 {[%emt 0:00:05]} c5 {[%emt 0:00:30]} 26. f5 {[%emt 0:01:53]} c4 {[%emt 0:00:26]} 27. Qf1 {[%emt 0:00:27]} gxf5 {[%emt 0:01:12]} 28. Qxf5 {[%emt 0:01:12]} Bg7 {[%emt 0:00:05]} 29. Rg1 {[%emt 0:00:03]} Qe7 {[%emt 0:01:31]} 30. Nh7 {[%emt 0:00:45]} Nxh7 {[%emt 0:00:39]} 31. Qxd5 {[%emt 0:01:52]} Re8 {[%emt 0:00:36]} 32. Bh6 {[%emt 0:00:33]} c3 {[%emt 0:00:26]} 33. Qh5 0-1

[Event "3rd Memorial Warakomska 2019"]
[Site "Suwalki"]
[Date "2019.08.10"]
[Round "7.5"]
[White "Sadzikowski, Daniel"]
[Black "Hnydiuk, Aleksander"]
[Result "1/2-1/2"]
[ECO "B04"]
[WhiteElo "2503"]
[BlackElo "2412"]
[Annotator "ChessBase"]
[PlyCount "95"]
[EventDate "2019.08.05"]
[EventType "swiss"]
[EventCountry "POL"]
[SourceTitle "playchess.com"]
[Source "ChessBase"]
[SourceQuality "1"]
[TimeControl "40/5400+30:1800+30"]

1. e4 {[%emt 0:00:00]} Nf6 {[%emt 0:05:23]} 2. e5 {[%emt 0:00:00]} Nd5 {[%emt 0:00:02]} 3. d4 {[%emt 0:00:00]} d6 {[%emt 0:00:04]} 4. Nf3 {[%emt 0:00:10]} dxe5 {[%emt 0:00:05]} 5. Nxe5 {[%emt 0:00:09]} c6 {[%emt 0:00:03]} 6. a3 {[%emt 0:03:34]} Nd7 {[%emt 0:04:05]} 7. c4 {[%emt 0:06:47]} N5b6 {[%emt 0:05:07]} 8. Nf3 {[%emt 0:08:52]} Nf6 {[%emt 0:01:47]} 9. h3 {[%emt 0:02:37]} Bf5 {[%emt 0:02:24]} 10. Be2 {[%emt 0:00:35]} e6 {[%emt 0:01:35]} 11. O-O {[%emt 0:00:30]} Be7 {[%emt 0:13:14]} 12. Bf4 {[%emt 0:10:55]} O-O {[%emt 0:01:21]} 13. Re1 {[%emt 0:01:42]} c5 {[%emt 0:06:55]} 14. Bf1 {[%emt 0:13:07]} Rc8 {[%emt 0:01:51]} 15. Nc3 {[%emt 0:02:43]} Bg6 {[%emt 0:12:19]} 16. dxc5 {[%emt 0:06:09]} Qxd1 {[%emt 0:05:37]} 17. Raxd1 {[%emt 0:00:32]} Bxc5 {[%emt 0:00:47]} 18. b4 {[%emt 0:06:45]} Be7 {[%emt 0:00:05]} 19. c5 {[%emt 0:01:29]} Nbd7 {[%emt 0:02:50]} 20. Nb5 {[%emt 0:01:48]} a6 {[%emt 0:00:30]} 21. Nd6 {[%emt 0:01:54]} Bxd6 {[%emt 0:00:13]} 22. Rxd6 {[%emt 0:02:02]} Nb8 {[%emt 0:06:25]} 23. Ne5 {[%emt 0:01:59]} Rfd8 {[%emt 0:03:49]} 24. Nxg6 {[%emt 0:04:22]} hxg6 {[%emt 0:00:07]} 25. Red1 {[%emt 0:00:38]} Nd5 {[%emt 0:02:08]} 26. Bc4 {[%emt 0:02:09]} Rxd6 {[%emt 0:07:05]} 27. Bxd6 {[%emt 0:00:03]} Nc6 {[%emt 0:01:53]} 28. Bxd5 {[%emt 0:00:51]} exd5 {[%emt 0:00:05]} 29. Rxd5 {[%emt 0:00:08]} Rd8 {[%emt 0:01:08]} 30. Kf1 {[%emt 0:02:18]} Na7 {[%emt 0:09:37]} 31. Ke2 {[%emt 0:14:07]} Nb5 {[%emt 0:00:04]} 32. Rd3 {[%emt 0:00:03]} f6 {[%emt 0:00:10]} 33. a4 {[%emt 0:01:11]} Nxd6 {[%emt 0:00:12]} 34. cxd6 {[%emt 0:00:22]} Kf7 {[%emt 0:02:16]} 35. Kf3 {[%emt 0:01:16]} Rd7 {[%emt 0:00:40]} 36. Ke4 {[%emt 0:01:49]} Ke6 {[%emt 0:00:42]} 37. Rg3 {[%emt 0:02:49]} g5 {[%emt 0:01:08]} 38. Rd3 {[%emt 0:00:06]} g6 {[%emt 0:03:09]} 39. f4 {[%emt 0:00:40]} gxf4 {[%emt 0:01:44]} 40. Kxf4 {[%emt 0:00:00]} Rxd6 {[%emt 0:00:00]} 41. Rxd6+ Kxd6 42. h4 {[%emt 0:02:09]} Ke6 {[%emt 0:07:42]} 43. a5 {[%emt 0:08:54]} Ke7 {[%emt 0:01:42]} 44. g4 {[%emt 0:06:54]} Kf7 {[%emt 0:06:11]} 45. Ke4 {[%emt 0:00:31]} Ke6 {[%emt 0:00:06]} 46. h5 {[%emt 0:01:06]} Kf7 {[%emt 0:01:30]} 47. Kd5 {[%emt 0:00:44]} Kg7 {[%emt 0:04:54]} 48. Ke6 {[%emt 0:01:53]} 1/2-1/2

[Event "3rd Memorial Warakomska 2019"]
[Site "Suwalki"]
[Date "2019.08.10"]
[Round "7.6"]
[White "Tihonov, Jurij"]
[Black "Zakhartsov, Vladimir"]
[Result "0-1"]
[ECO "D64"]
[WhiteElo "2393"]
[BlackElo "2493"]
[Annotator "ChessBase"]
[PlyCount "80"]
[EventDate "2019.08.05"]
[EventType "swiss"]
[EventCountry "POL"]
[SourceTitle "playchess.com"]
[Source "ChessBase"]
[SourceQuality "1"]
[TimeControl "40/5400+30:1800+30"]

1. Nf3 {[%emt 0:00:00]} d5 2. d4 {[%emt 0:02:36]} Nf6 {[%emt 0:02:09]} 3. c4 {[%emt 0:00:05]} e6 {[%emt 0:01:30]} 4. Nc3 {[%emt 0:00:13]} Be7 {[%emt 0:01:26]} 5. Bg5 {[%emt 0:06:38]} Nbd7 {[%emt 0:02:18]} 6. e3 {[%emt 0:04:47]} c6 {[%emt 0:01:34]} 7. Rc1 {[%emt 0:02:59]} O-O {[%emt 0:01:41]} 8. Qc2 {[%emt 0:00:15]} h6 {[%emt 0:02:59]} 9. Bh4 {[%emt 0:00:12]} a6 {[%emt 0:01:53]} 10. a3 {[%emt 0:07:05]} Re8 {[%emt 0:07:22]} 11. Bd3 {[%emt 0:06:32]} dxc4 {[%emt 0:00:35]} 12. Bxc4 {[%emt 0:00:05]} b5 {[%emt 0:00:10]} 13. Ba2 {[%emt 0:20:46]} Bb7 {[%emt 0:02:06]} 14. b4 {[%emt 0:14:17]} a5 {[%emt 0:00:33]} 15. Qb2 {[%emt 0:01:23]} Nd5 {[%emt 0:06:38]} 16. Bxe7 {[%emt 0:03:03]} Qxe7 {[%emt 0:00:03]} 17. Bxd5 {[%emt 0:01:38]} exd5 {[%emt 0:00:11]} 18. O-O {[%emt 0:02:14]} Nb6 {[%emt 0:00:31]} 19. Nd2 {[%emt 0:00:50]} Bc8 {[%emt 0:05:42]} 20. e4 {[%emt 0:03:04]} Be6 {[%emt 0:02:06]} 21. e5 {[%emt 0:04:35]} Reb8 {[%emt 0:02:07]} 22. Na2 {[%emt 0:00:42]} Nc4 {[%emt 0:00:56]} 23. Nxc4 {[%emt 0:00:05]} bxc4 {[%emt 0:00:26]} 24. Qc3 {[%emt 0:01:09]} Bf5 {[%emt 0:04:00]} 25. Qe3 {[%emt 0:01:22]} Qg5 {[%emt 0:02:27]} 26. f4 {[%emt 0:03:13]} Qg6 {[%emt 0:00:31]} 27. Rf3 {[%emt 0:02:49]} Bd3 {[%emt 0:00:33]} 28. Qf2 {[%emt 0:02:35]} Qf5 {[%emt 0:02:32]} 29. bxa5 {[%emt 0:00:29]} Rxa5 {[%emt 0:00:34]} 30. Nb4 {[%emt 0:00:06]} Rxa3 {[%emt 0:01:00]} 31. Nxc6 {[%emt 0:00:04]} Rb7 {[%emt 0:00:52]} 32. e6 {[%emt 0:02:41]} fxe6 {[%emt 0:02:05]} 33. Ne5 {[%emt 0:00:32]} Rab3 {[%emt 0:01:31]} 34. h3 {[%emt 0:01:04]} Be4 {[%emt 0:05:50]} 35. Rg3 {[%emt 0:03:25]} Rb2 {[%emt 0:01:50]} 36. Qf1 {[%emt 0:00:16]} R7b3 {[%emt 0:05:43]} 37. Rxb3 {[%emt 0:01:17]} cxb3 {[%emt 0:01:11]} 38. Rc8+ {[%emt 0:00:54]} Kh7 {[%emt 0:00:05]} 39. Nd7 {[%emt 0:00:21]} Rb1 {[%emt 0:01:33]} 40. Rc1 {[%emt 0:00:00]} Bxg2 {[%emt 0:00:00]} 0-1

[Event "3rd Memorial Warakomska 2019"]
[Site "Suwalki"]
[Date "2019.08.10"]
[Round "7.8"]
[White "Goluch, Piotr"]
[Black "Jakubowski, Krzysztof"]
[Result "1/2-1/2"]
[ECO "E10"]
[WhiteElo "2386"]
[BlackElo "2528"]
[Annotator "ChessBase"]
[PlyCount "75"]
[EventDate "2019.08.05"]
[EventType "swiss"]
[EventCountry "POL"]
[SourceTitle "playchess.com"]
[Source "ChessBase"]
[SourceQuality "1"]
[TimeControl "40/5400+30:1800+30"]

1. d4 {[%emt 0:00:00]} Nf6 {[%emt 0:00:00]} 2. c4 {[%emt 0:00:00]} e6 {[%emt 0:00:00]} 3. Nf3 {[%emt 0:00:04]} d5 {[%emt 0:00:00]} 4. g3 {[%emt 0:00:13]} Bb4+ {[%emt 0:00:04]} 5. Bd2 {[%emt 0:00:15]} Be7 {[%emt 0:00:07]} 6. Bg2 {[%emt 0:00:04]} O-O {[%emt 0:00:08]} 7. O-O {[%emt 0:00:26]} c6 {[%emt 0:00:07]} 8. Qc2 {[%emt 0:00:10]} Nbd7 {[%emt 0:00:08]} 9. Bf4 {[%emt 0:00:12]} h6 {[%emt 0:00:10]} 10. Rd1 {[%emt 0:08:40]} a5 {[%emt 0:01:28]} 11. Ne5 {[%emt 0:04:01]} Nxe5 {[%emt 0:00:46]} 12. dxe5 {[%emt 0:01:42]} Nd7 {[%emt 0:00:08]} 13. cxd5 {[%emt 0:00:13]} exd5 {[%emt 0:00:22]} 14. e4 {[%emt 0:11:13]} dxe4 {[%emt 0:01:49]} 15. e6 {[%emt 0:11:09]} fxe6 {[%emt 0:00:20]} 16. Qxe4 {[%emt 0:00:57]} Rf6 {[%emt 0:09:15]} 17. Na3 {[%emt 0:16:32]} Bxa3 {[%emt 0:23:53]} 18. bxa3 {[%emt 0:00:05]} Qe8 {[%emt 0:00:07]} 19. Bc7 {[%emt 0:04:01]} Rf8 {[%emt 0:05:54]} 20. Qe1 {[%emt 0:14:53]} Nf6 {[%emt 0:01:36]} 21. Bxa5 {[%emt 0:00:10]} Nd5 {[%emt 0:05:12]} 22. Bb4 {[%emt 0:00:17]} Rf6 {[%emt 0:02:58]} 23. Bc3 {[%emt 0:06:58]} Nxc3 {[%emt 0:06:10]} 24. Qxc3 {[%emt 0:01:13]} Qf8 {[%emt 0:00:31]} 25. Rd3 {[%emt 0:00:15]} e5 {[%emt 0:05:03]} 26. Qb2 {[%emt 0:00:02]} Rd6 {[%emt 0:02:33]} 27. Re3 {[%emt 0:01:44]} Rd8 {[%emt 0:02:14]} 28. Rae1 {[%emt 0:02:17]} Kh8 {[%emt 0:02:34]} 29. Be4 {[%emt 0:07:26]} Ra4 {[%emt 0:10:49]} 30. Qxe5 {[%emt 0:03:12]} Rxa3 {[%emt 0:01:04]} 31. Rxa3 {[%emt 0:00:58]} Qxa3 {[%emt 0:00:05]} 32. Bb1 {[%emt 0:03:11]} Qf8 {[%emt 0:01:54]} 33. Qe4 {[%emt 0:00:27]} Qg8 {[%emt 0:00:05]} 34. Bc2 {[%emt 0:01:25]} Bd7 {[%emt 0:06:52]} 35. Bb3 {[%emt 0:01:24]} Qf8 {[%emt 0:00:39]} 36. Bc2 {[%emt 0:00:15]} Qg8 {[%emt 0:00:05]} 37. Bb3 {[%emt 0:00:03]} Qf8 {[%emt 0:00:03]} 38. Bc2 {[%emt 0:00:03]} 1/2-1/2

[Event "3rd Memorial Warakomska 2019"]
[Site "Suwalki"]
[Date "2019.08.10"]
[Round "7.9"]
[White "Zakhartsov, Viacheslav V."]
[Black "Grib, Roman"]
[Result "1/2-1/2"]
[ECO "D96"]
[WhiteElo "2518"]
[BlackElo "2421"]
[Annotator "ChessBase"]
[PlyCount "126"]
[EventDate "2019.08.05"]
[EventType "swiss"]
[EventCountry "POL"]
[SourceTitle "playchess.com"]
[Source "ChessBase"]
[SourceQuality "1"]
[TimeControl "40/5400+30:1800+30"]

1. d4 {[%emt 0:00:00]} Nf6 {[%emt 0:00:00]} 2. c4 {[%emt 0:00:00]} c6 {[%emt 0:00:00]} 3. Nc3 {[%emt 0:00:00]} d5 {[%emt 0:00:00]} 4. Nf3 {[%emt 0:00:20]} g6 {[%emt 0:00:19]} 5. cxd5 {[%emt 0:02:24]} cxd5 {[%emt 0:00:04]} 6. Qb3 {[%emt 0:00:04]} Nc6 {[%emt 0:17:13]} 7. Bg5 {[%emt 0:02:16]} Na5 {[%emt 0:15:30]} 8. Qa4+ {[%emt 0:10:43]} Bd7 {[%emt 0:00:10]} 9. Qd1 {[%emt 0:00:10]} Ne4 {[%emt 0:12:57]} 10. Nxe4 {[%emt 0:01:33]} dxe4 {[%emt 0:00:04]} 11. Nd2 {[%emt 0:00:58]} Qb6 {[%emt 0:11:58]} 12. Nxe4 {[%emt 0:11:10]} Bg7 {[%emt 0:07:05]} 13. e3 {[%emt 0:01:21]} h6 {[%emt 0:13:11]} 14. Bf4 {[%emt 0:05:46]} Qxb2 {[%emt 0:05:58]} 15. Bd3 {[%emt 0:04:13]} O-O {[%emt 0:04:10]} 16. O-O {[%emt 0:05:02]} Bc6 {[%emt 0:02:48]} 17. Nc5 {[%emt 0:07:09]} e5 {[%emt 0:03:25]} 18. dxe5 {[%emt 0:04:51]} Bxe5 {[%emt 0:00:12]} 19. Bxh6 {[%emt 0:12:12]} Bxh2+ {[%emt 0:00:20]} 20. Kxh2 {[%emt 0:00:28]} Qh8 {[%emt 0:00:04]} 21. Qg4 {[%emt 0:03:23]} Qxh6+ {[%emt 0:00:06]} 22. Kg1 {[%emt 0:12:12]} Rad8 {[%emt 0:00:52]} 23. Be2 {[%emt 0:03:15]} Rd5 {[%emt 0:03:07]} 24. Qb4 {[%emt 0:01:41]} Rg5 {[%emt 0:00:13]} 25. f3 {[%emt 0:02:28]} Re5 {[%emt 0:00:20]} 26. Rf2 {[%emt 0:02:56]} Qxe3 {[%emt 0:00:38]} 27. Nd3 {[%emt 0:01:23]} Rd5 {[%emt 0:00:31]} 28. Re1 {[%emt 0:00:23]} Qd4 {[%emt 0:00:38]} 29. Qxd4 {[%emt 0:00:30]} Rxd4 {[%emt 0:00:03]} 30. Ne5 {[%emt 0:00:12]} Re8 {[%emt 0:01:03]} 31. Nxc6 {[%emt 0:00:41]} Nxc6 {[%emt 0:00:06]} 32. Rb1 {[%emt 0:00:06]} Rb4 {[%emt 0:01:32]} 33. Rc1 {[%emt 0:00:08]} Re3 {[%emt 0:00:59]} 34. Bc4 {[%emt 0:01:13]} Ne5 {[%emt 0:00:22]} 35. Bd5 {[%emt 0:00:30]} Nd3 {[%emt 0:00:44]} 36. Rc8+ {[%emt 0:00:08]} Kg7 {[%emt 0:00:04]} 37. Rd2 {[%emt 0:00:51]} Nf4 {[%emt 0:01:10]} 38. Bb3 {[%emt 0:00:49]} Re7 {[%emt 0:00:30]} 39. Kf2 {[%emt 0:00:53]} a5 {[%emt 0:00:24]} 40. Ra8 {[%emt 0:00:00]} b6 {[%emt 0:00:00]} 41. g3 {[%emt 0:02:21]} Ne6 {[%emt 0:11:19]} 42. Re2 {[%emt 0:00:44]} Kf6 {[%emt 0:05:38]} 43. f4 {[%emt 0:00:10]} g5 {[%emt 0:01:15]} 44. fxg5+ {[%emt 0:00:34]} Nxg5 {[%emt 0:00:16]} 45. Rxe7 {[%emt 0:00:49]} Kxe7 {[%emt 0:00:04]} 46. Ke3 {[%emt 0:01:53]} f6 {[%emt 0:03:48]} 47. Bd5 {[%emt 0:03:37]} Rg4 {[%emt 0:03:44]} 48. Kf2 {[%emt 0:00:30]} Rd4 {[%emt 0:00:14]} 49. Bb3 {[%emt 0:00:23]} Rb4 {[%emt 0:00:33]} 50. Ke3 {[%emt 0:02:22]} Ne4 {[%emt 0:04:44]} 51. Rg8 {[%emt 0:01:28]} Nc5 {[%emt 0:00:52]} 52. Bd5 {[%emt 0:00:37]} Kd6 {[%emt 0:01:27]} 53. Rd8+ {[%emt 0:00:42]} Ke5 {[%emt 0:00:57]} 54. Bg8 {[%emt 0:01:30]} f5 {[%emt 0:02:25]} 55. Rd5+ {[%emt 0:02:09]} Kf6 {[%emt 0:00:03]} 56. Rd6+ {[%emt 0:00:10]} Kg7 {[%emt 0:01:12]} 57. Bd5 {[%emt 0:00:19]} Ne4 {[%emt 0:00:24]} 58. Bxe4 {[%emt 0:02:31]} Rxe4+ {[%emt 0:00:06]} 59. Kf3 {[%emt 0:00:08]} Rb4 {[%emt 0:00:10]} 60. a3 {[%emt 0:00:15]} Rb3+ {[%emt 0:00:39]} 61. Kf4 {[%emt 0:00:06]} b5 {[%emt 0:00:55]} 62. Rd5 {[%emt 0:03:04]} Kf6 {[%emt 0:00:52]} 63. Rxf5+ {[%emt 0:01:42]} Kg6 {[%emt 0:00:21]} 1/2-1/2

[Event "3rd Memorial Warakomska 2019"]
[Site "Suwalki"]
[Date "2019.08.10"]
[Round "7.10"]
[White "Kaczmarek, Aleksander"]
[Black "Stupak, Kirill"]
[Result "0-1"]
[ECO "C00"]
[WhiteElo "2389"]
[BlackElo "2560"]
[Annotator "ChessBase"]
[PlyCount "100"]
[EventDate "2019.08.05"]
[EventType "swiss"]
[EventCountry "POL"]
[SourceTitle "playchess.com"]
[Source "ChessBase"]
[SourceQuality "1"]
[TimeControl "40/5400+30:1800+30"]

1. e4 {[%emt 0:00:00]} e6 {[%emt 0:02:12]} 2. b3 {[%emt 0:00:22]} c5 {[%emt 0:01:44]} 3. Bb2 {[%emt 0:00:08]} b6 {[%emt 0:01:25]} 4. Nf3 {[%emt 0:13:15]} Bb7 {[%emt 0:00:10]} 5. Nc3 {[%emt 0:00:26]} d6 {[%emt 0:05:48]} 6. d4 {[%emt 0:00:22]} cxd4 {[%emt 0:00:07]} 7. Nxd4 {[%emt 0:00:04]} Nf6 {[%emt 0:03:09]} 8. Bd3 {[%emt 0:02:31]} Nbd7 {[%emt 0:00:50]} 9. O-O {[%emt 0:03:35]} a6 {[%emt 0:00:36]} 10. Qe2 {[%emt 0:02:10]} g6 {[%emt 0:29:49]} 11. Bc4 {[%emt 0:21:22]} e5 {[%emt 0:11:24]} 12. Nf3 {[%emt 0:00:47]} b5 {[%emt 0:00:47]} 13. Bd3 {[%emt 0:05:16]} Bg7 {[%emt 0:06:16]} 14. b4 {[%emt 0:00:36]} O-O {[%emt 0:03:05]} 15. a4 {[%emt 0:00:06]} bxa4 {[%emt 0:07:19]} 16. Rxa4 {[%emt 0:00:37]} d5 {[%emt 0:01:49]} 17. Ra5 {[%emt 0:08:45]} Qb6 {[%emt 0:05:23]} 18. Ba3 {[%emt 0:01:27]} Qc7 {[%emt 0:07:00]} 19. Nxd5 {[%emt 0:11:08]} Bxd5 {[%emt 0:00:27]} 20. exd5 {[%emt 0:00:07]} e4 {[%emt 0:00:01]} 21. Bxe4 {[%emt 0:00:05]} Rfe8 {[%emt 0:01:11]} 22. d6 {[%emt 0:00:19]} Qc8 {[%emt 0:04:25]} 23. Ng5 {[%emt 0:07:23]} Nxe4 {[%emt 0:00:04]} 24. Nxe4 {[%emt 0:00:09]} f5 {[%emt 0:00:01]} 25. f3 {[%emt 0:01:32]} fxe4 {[%emt 0:00:01]} 26. fxe4 {[%emt 0:00:05]} Qc6 {[%emt 0:00:01]} 27. Qf3 {[%emt 0:03:16]} Qc4 {[%emt 0:02:58]} 28. Qd3 {[%emt 0:04:54]} Rxe4 {[%emt 0:01:47]} 29. b5 {[%emt 0:06:50]} Bc3 {[%emt 0:03:07]} 30. Rxa6 {[%emt 0:02:10]} Rxa6 {[%emt 0:00:01]} 31. Qxc4+ {[%emt 0:00:15]} Rxc4 {[%emt 0:00:24]} 32. bxa6 {[%emt 0:00:03]} Ra4 {[%emt 0:00:28]} 33. Bc1 {[%emt 0:04:32]} Bd4+ {[%emt 0:00:04]} 34. Kh1 {[%emt 0:00:03]} Be5 {[%emt 0:00:08]} 35. g3 {[%emt 0:01:12]} Rxa6 {[%emt 0:00:15]} 36. Bf4 {[%emt 0:01:13]} Bxf4 {[%emt 0:00:22]} 37. gxf4 {[%emt 0:00:04]} Rxd6 {[%emt 0:00:07]} 38. f5 {[%emt 0:00:02]} Rd2 {[%emt 0:00:39]} 39. fxg6 {[%emt 0:00:26]} hxg6 {[%emt 0:00:01]} 40. c4 {[%emt 0:00:00]} Rc2 {[%emt 0:00:00]} 41. Rg1 {[%emt 0:01:00]} Kg7 {[%emt 0:00:29]} 42. Rd1 {[%emt 0:01:54]} Ne5 {[%emt 0:00:13]} 43. Rf1 {[%emt 0:00:17]} Nxc4 {[%emt 0:00:59]} 44. Kg1 {[%emt 0:00:15]} Ne5 {[%emt 0:00:14]} 45. Rf4 {[%emt 0:00:33]} Kh6 {[%emt 0:00:12]} 46. Rh4+ {[%emt 0:02:18]} Kg5 {[%emt 0:00:21]} 47. Rh8 {[%emt 0:00:24]} Nf3+ {[%emt 0:00:19]} 48. Kh1 {[%emt 0:00:05]} Kf4 {[%emt 0:00:14]} 49. Rh6 {[%emt 0:00:47]} Ke3 {[%emt 0:00:19]} 50. Rxg6 {[%emt 0:00:17]} Rxh2# {[%emt 0:00:08]} 0-1

[Event "3rd Memorial Warakomska 2019"]
[Site "Suwalki"]
[Date "2019.08.10"]
[Round "7.11"]
[White "Karavade, Eesha"]
[Black "Czarnota, Pawel"]
[Result "0-1"]
[ECO "B40"]
[WhiteElo "2355"]
[BlackElo "2534"]
[Annotator "ChessBase"]
[PlyCount "28"]
[EventDate "2019.08.05"]
[EventType "swiss"]
[EventCountry "POL"]
[SourceTitle "playchess.com"]
[Source "ChessBase"]
[SourceQuality "1"]
[TimeControl "40/5400+30:1800+30"]

1. e4 {[%emt 0:00:00]} c5 {[%emt 0:01:20]} 2. Nf3 {[%emt 0:00:00]} e6 {[%emt 0:01:01]} 3. b3 {[%emt 0:01:46]} d6 {[%emt 0:04:02]} 4. Bb5+ {[%emt 0:02:49]} Nd7 {[%emt 0:02:07]} 5. Bb2 {[%emt 0:02:40]} Ngf6 {[%emt 0:02:01]} 6. e5 {[%emt 0:03:20]} dxe5 {[%emt 0:03:20]} 7. Nxe5 {[%emt 0:03:06]} Be7 {[%emt 0:02:31]} 8. Nxd7 {[%emt 0:06:04]} Bxd7 {[%emt 0:01:08]} 9. Qe2 {[%emt 0:00:41]} O-O {[%emt 0:01:59]} 10. Bxd7 {[%emt 0:01:02]} Qxd7 {[%emt 0:02:52]} 11. Nc3 {[%emt 0:01:14]} Rfd8 {[%emt 0:03:19]} 12. Rd1 {[%emt 0:00:23]} Nd5 {[%emt 0:20:43]} 13. Nxd5 {[%emt 0:00:57]} exd5 {[%emt 0:05:04]} 14. a4 {[%emt 0:00:43]} Re8 {[%emt 0:01:10]} 0-1

[Event "3rd Memorial Warakomska 2019"]
[Site "Suwalki"]
[Date "2019.08.10"]
[Round "7.12"]
[White "Shyam, Sundar M."]
[Black "Kowalski, Igor"]
[Result "1-0"]
[ECO "B30"]
[WhiteElo "2520"]
[BlackElo "2320"]
[Annotator "ChessBase"]
[PlyCount "87"]
[EventDate "2019.08.05"]
[EventType "swiss"]
[EventCountry "POL"]
[SourceTitle "playchess.com"]
[Source "ChessBase"]
[SourceQuality "1"]
[TimeControl "40/5400+30:1800+30"]

1. e4 {[%emt 0:00:38]} c5 {[%emt 0:00:00]} 2. Nf3 {[%emt 0:00:21]} Nc6 {[%emt 0:00:00]} 3. Nc3 {[%emt 0:00:05]} e5 {[%emt 0:00:00]} 4. Bc4 {[%emt 0:00:03]} d6 {[%emt 0:00:00]} 5. d3 {[%emt 0:00:07]} Be7 {[%emt 0:00:57]} 6. Nd2 {[%emt 0:00:43]} Nf6 {[%emt 0:00:07]} 7. Nf1 {[%emt 0:00:02]} Nd7 {[%emt 0:00:25]} 8. a3 {[%emt 0:00:31]} Nb6 {[%emt 0:00:48]} 9. Ba2 {[%emt 0:00:05]} O-O {[%emt 0:02:01]} 10. Ne3 {[%emt 0:00:08]} Kh8 {[%emt 0:03:56]} 11. O-O {[%emt 0:01:44]} Nd4 {[%emt 0:00:46]} 12. Ncd5 {[%emt 0:00:44]} Nxd5 {[%emt 0:01:14]} 13. Bxd5 {[%emt 0:00:46]} Bg5 {[%emt 0:05:12]} 14. c3 {[%emt 0:00:14]} Ne6 {[%emt 0:00:30]} 15. b4 {[%emt 0:05:35]} cxb4 {[%emt 0:05:54]} 16. axb4 {[%emt 0:00:05]} Nc7 {[%emt 0:00:09]} 17. Bb3 {[%emt 0:01:45]} Be6 {[%emt 0:00:38]} 18. c4 {[%emt 0:14:44]} a6 {[%emt 0:07:26]} 19. Bd2 {[%emt 0:02:46]} Rc8 {[%emt 0:13:48]} 20. Re1 {[%emt 0:05:48]} f5 {[%emt 0:07:21]} 21. exf5 {[%emt 0:15:05]} Bxf5 {[%emt 0:01:11]} 22. Nxf5 {[%emt 0:00:59]} Bxd2 {[%emt 0:02:30]} 23. Qxd2 {[%emt 0:00:15]} Rxf5 {[%emt 0:00:05]} 24. d4 {[%emt 0:00:33]} Ne6 {[%emt 0:09:30]} 25. dxe5 {[%emt 0:00:32]} Nf4 {[%emt 0:00:05]} 26. Kh1 {[%emt 0:10:25]} dxe5 {[%emt 0:03:29]} 27. Rad1 {[%emt 0:26:06]} Qf6 {[%emt 0:04:58]} 28. c5 {[%emt 0:02:56]} Rf8 {[%emt 0:03:00]} 29. f3 {[%emt 0:00:42]} h5 {[%emt 0:03:57]} 30. Bc2 {[%emt 0:03:40]} Rg5 {[%emt 0:00:22]} 31. g3 {[%emt 0:00:03]} Ne6 {[%emt 0:01:09]} 32. Be4 {[%emt 0:00:04]} h4 {[%emt 0:04:50]} 33. gxh4 {[%emt 0:04:10]} Rh5 {[%emt 0:00:05]} 34. Rg1 {[%emt 0:00:04]} Nd4 {[%emt 0:08:04]} 35. Rg3 {[%emt 0:02:27]} Rxh4 {[%emt 0:01:26]} 36. Rdg1 {[%emt 0:00:22]} Rf7 {[%emt 0:00:04]} 37. Rg6 {[%emt 0:01:30]} Qe7 {[%emt 0:02:26]} 38. R1g3 {[%emt 0:00:51]} Rhf4 {[%emt 0:08:24]} 39. Qg2 {[%emt 0:01:02]} Nf5 {[%emt 0:01:06]} 40. Rh3+ {[%emt 0:00:00]} Nh4 {[%emt 0:00:00]} 41. Rg4 {[%emt 0:01:08]} Rxg4 {[%emt 0:03:49]} 42. Qxg4 {[%emt 0:00:47]} g5 {[%emt 0:00:05]} 43. Qh5+ {[%emt 0:00:10]} Kg7 {[%emt 0:00:03]} 44. Qh7+ {[%emt 0:00:05]} 1-0